bitfinex-derivatives/quotes_SOLF0:USTF0_20250514
["timestamp","ask_amount","ask_price","bid_price","bid_amount"]
[1747230998737,82.86,178.21,178.07,82.9]
[1747230999839,5.6118,178.17,178.12,5.6131]
[1747231000039,82.86,178.21,178.12,5.6131]
[1747231000344,362.0,178.2,178.11,5.6135]
[1747231000534,362.0,178.19,178.07,82.9]
[1747231001944,5.6123,178.16,178.12,5.6133]
[1747231002243,362.0,178.19,178.06,485.3]
[1747231002443,362.0,178.18,178.06,485.3]
[1747231003541,5.6117,178.17,178.09,5.6141]
[1747231003733,362.0,178.18,178.06,485.3]
[1747231004233,367.6117,178.18,178.13,5.613]
[1747231004542,362.0,178.18,178.06,485.3]
[1747231005043,82.9,178.22,178.06,496.5301]
[1747231005238,5.6108,178.2,178.15,5.6122]
[1747231005444,82.9,178.22,178.13,82.9]
[1747231005944,82.68,178.24,178.14,3.6981]
[1747231006442,5.61,178.23,178.14,3.6981]
[1747231006845,5.6104,178.22,178.17,5.6115]
[1747231007042,5.6104,178.22,178.14,3.6981]
[1747231007245,362.0,178.26,178.16,5.612]
[1747231007444,362.0,178.25,178.14,3.6981]
[1747231008842,5.6111,178.2,178.14,3.6981]
[1747231009047,362.0,178.25,178.14,3.6981]
[1747231009442,15.81793778,178.24,178.11,82.9]
[1747231009850,5.6114,178.19,178.11,82.9]
[1747231010145,15.81793778,178.24,178.11,82.9]
[1747231010349,5.6111,178.19,178.15,5.6122]
[1747231010546,15.81793778,178.24,178.11,82.9]
[1747231010948,15.81793778,178.24,178.16,5.6118]
[1747231011153,15.81793778,178.24,178.11,82.9]
[1747231011451,362.0,178.25,178.11,82.9]
[1747231012145,362.0,178.25,178.22,5.6099]
[1747231012344,362.0,178.25,178.17,82.9]
[1747231012954,444.48,178.31,178.18,3.6962]
[1747231013146,444.48,178.31,178.27,5.6084]
[1747231013550,444.48,178.31,178.18,3.6962]
[1747231013751,5.6076,178.3,178.24,5.6094]
[1747231014447,362.0,178.31,178.18,3.6962]
[1747231014654,362.0,178.3,178.18,3.6962]
[1747231014848,15.81793778,178.29,178.16,5.6118]
[1747231015047,15.81793778,178.29,178.15,82.9]
[1747231015350,5.6102,178.22,178.16,5.612]
[1747231015550,5.6102,178.22,178.15,82.9]
[1747231015754,82.42,178.25,178.15,82.9]
[1747231016057,82.42,178.25,178.14,82.88]
[1747231016857,362.0,178.28,178.14,82.88]
[1747231017156,362.0,178.28,178.15,15.81793778]
[1747231017752,362.0,178.28,178.16,165.24]
[1747231018662,5.6093,178.25,178.2,5.6108]
[1747231018861,5.6093,178.25,178.12,5.568]
[1747231018862,362.0,178.28,178.18,82.86]
[1747231019761,362.0,178.28,178.23,5.6096]
[1747231020065,362.0,178.28,178.18,82.86]
[1747231020361,362.0,178.34,178.26,5.6088]
[1747231020559,362.0,178.34,178.23,82.28]
[1747231020966,82.26,178.38,178.24,3.8054]
[1747231021268,82.26,178.38,178.25,82.86]
[1747231021454,5.6055,178.37,178.25,82.86]
[1747231022360,82.26,178.38,178.26,82.86]
[1747231022657,98.07793778,178.38,178.26,82.86]
[1747231023458,82.26,178.38,178.26,82.86]
[1747231024056,82.26,178.38,178.3,5.6074]
[1747231024258,82.26,178.38,178.27,82.84]
[1747231024661,82.26,178.38,178.29,5.6079]
[1747231024964,5.606,178.36,178.27,82.84]
[1747231025266,82.26,178.38,178.3,5.6073]
[1747231025565,82.26,178.38,178.27,82.84]
[1747231026763,82.26,178.38,178.3,5.6075]
[1747231026962,82.26,178.38,178.27,82.84]
[1747231027365,82.26,178.38,178.3,5.6074]
[1747231027669,82.26,178.38,178.27,82.84]
[1747231027670,98.07793778,178.38,178.27,82.84]
[1747231027864,5.6056,178.37,178.27,82.84]
[1747231028071,82.08,178.4,178.27,82.84]
[1747231028570,444.86,178.41,178.27,82.84]
[1747231028765,526.94,178.41,178.27,82.84]
[1747231029472,5.6056,178.37,178.27,82.84]
[1747231029666,362.0,178.41,178.27,82.84]
[1747231029867,5.6056,178.37,178.28,1.8661]
[1747231030071,362.0,178.41,178.28,1.8661]
[1747231030572,5.6051,178.39,178.28,1.8661]
[1747231030769,362.0,178.41,178.28,1.8661]
[1747231030962,362.0,178.41,178.28,82.12]
[1747231031168,5.6061,178.35,178.27,82.12]
[1747231031570,362.0,178.41,178.27,82.12]
[1747231031767,377.81793778,178.4,178.24,3.8054]
[1747231031967,15.81793778,178.32,178.21,82.12]
[1747231032167,526.1,178.31,178.17,567.0]
[1747231032465,362.0,178.3,178.19,5.6111]
[1747231032775,15.81793778,178.28,178.13,82.12]
[1747231032973,362.0,178.27,178.13,82.12]
[1747231033368,5.6108,178.2,178.13,82.12]
[1747231033568,81.96,178.23,178.16,5.6119]
[1747231033779,81.96,178.23,178.13,82.12]
[1747231034265,81.96,178.23,178.09,108.14736505]
[1747231034469,5.6113,178.19,178.09,82.14]
[1747231034676,5.6113,178.19,178.15,5.6123]
[1747231034874,81.96,178.23,178.09,82.14]
[1747231035076,362.0,178.24,178.09,82.14]
[1747231036073,362.0,178.24,178.08,484.68]
[1747231036269,362.0,178.23,178.09,164.06]
[1747231036870,5.612,178.17,178.08,484.68]
[1747231037076,81.9,178.2,178.09,82.16]
[1747231037379,87.5108,178.2,178.15,5.6122]
[1747231037569,87.5108,178.2,178.09,82.16]
[1747231037766,81.9,178.2,178.09,82.16]
[1747231037970,362.0,178.23,178.09,82.16]
[1747231039679,5.6102,178.22,178.09,82.16]
[1747231039877,362.0,178.23,178.09,82.16]
[1747231040381,5.6105,178.21,178.15,5.6123]
[1747231040680,362.0,178.23,178.11,81.84]
[1747231041381,362.0,178.23,178.11,97.65793778]
[1747231041678,362.0,178.23,178.08,484.68]
[1747231041979,362.0,178.23,178.12,163.96]
[1747231043581,362.0,178.23,178.19,5.611]
[1747231043881,362.0,178.23,178.12,163.96]
[1747231044573,163.9,178.29,178.12,163.96]
[1747231044771,163.9,178.29,178.22,5.6102]
[1747231044772,5.6084,178.28,178.22,5.6102]
[1747231044977,163.9,178.29,178.19,82.16]
[1747231045172,81.74,178.29,178.26,5.6088]
[1747231045379,362.0,178.3,178.2,3.7407]
[1747231045675,5.6085,178.28,178.23,5.6098]
[1747231045874,362.0,178.3,178.2,3.7407]
[1747231046582,362.0,178.3,178.2,1.9145]
[1747231047683,443.68,178.3,178.2,1.9145]
[1747231047981,362.0,178.3,178.21,81.66]
[1747231048381,362.0,178.3,178.2,1.9145]
[1747231048577,5.6081,178.29,178.24,5.6093]
[1747231048880,362.0,178.3,178.2,1.9145]
[1747231049182,367.6077,178.3,178.25,5.609]
[1747231049382,362.0,178.3,178.2,1.9145]
[1747231050077,82.16,178.34,178.2,1.9145]
[1747231050274,82.16,178.34,178.31,5.6071]
[1747231050477,82.16,178.34,178.25,82.16]
[1747231050679,11.2145,178.32,178.0,52.65627793]
[1747231050983,15.82039998,178.27,178.06,15.82039998]
[1747231051188,5.6111,178.19,178.13,5.6128]
[1747231051480,81.6,178.19,178.06,15.82039998]
[1747231051984,81.56,178.21,178.05,101.15550646]
[1747231052379,81.56,178.21,178.15,5.6122]
[1747231052784,5.6109,178.2,178.15,5.6122]
[1747231052984,81.56,178.21,178.16,5.6118]
[1747231053186,81.56,178.21,178.13,82.14]
[1747231053386,87.1707,178.21,178.13,82.14]
[1747231053781,81.56,178.21,178.13,82.14]
[1747231053983,81.56,178.21,178.14,3.7044]
[1747231054183,81.56,178.21,178.17,5.6115]
[1747231054586,81.56,178.21,178.14,3.7044]
[1747231054888,81.56,178.21,178.17,5.6117]
[1747231055085,81.56,178.21,178.14,3.7044]
[1747231055487,87.1708,178.21,178.16,5.612]
[1747231055683,81.56,178.21,178.14,3.7044]
[1747231055986,5.6111,178.19,178.14,9.317]
[1747231056187,81.56,178.21,178.14,9.317]
[1747231056786,5.6113,178.19,178.15,5.6123]
[1747231056990,5.6113,178.19,178.14,3.7044]
[1747231057180,5.6113,178.19,178.13,82.14]
[1747231057384,5.6109,178.2,178.15,5.6123]
[1747231057683,81.56,178.21,178.15,5.6123]
[1747231057888,5.6109,178.2,178.15,5.6123]
[1747231058591,81.56,178.21,178.13,82.14]
[1747231058890,81.56,178.21,178.15,5.6121]
[1747231059189,81.56,178.21,178.13,82.14]
[1747231060083,81.56,178.21,178.16,5.612]
[1747231060490,81.56,178.21,178.15,5.6123]
[1747231060692,81.56,178.21,178.13,82.14]
[1747231061789,362.0,178.26,178.13,82.14]
[1747231061991,443.36,178.26,178.14,3.6968]
[1747231062188,443.36,178.26,178.15,81.36]
[1747231062384,362.0,178.26,178.15,81.36]
[1747231062788,81.36,178.29,178.15,81.36]
[1747231063278,5.6084,178.28,178.23,5.6098]
[1747231063479,81.36,178.29,178.2,81.5]
[1747231063684,86.9681,178.29,178.23,5.6096]
[1747231063889,81.36,178.29,178.2,81.5]
[1747231064291,81.36,178.29,178.25,5.6091]
[1747231064592,81.36,178.29,178.2,81.5]
[1747231065184,362.0,178.28,178.18,81.5]
[1747231065388,5.6097,178.24,178.18,81.5]
[1747231065693,362.0,178.28,178.18,81.5]
[1747231065894,443.5,178.28,178.19,5.6108]
[1747231066192,443.5,178.28,178.18,81.5]
[1747231066895,5.6087,178.27,178.18,81.5]
[1747231067393,5.6087,178.27,178.23,5.6096]
[1747231067595,5.6087,178.27,178.18,81.5]
[1747231067792,5.6089,178.26,178.18,81.5]
[1747231068093,5.6089,178.26,178.23,5.6096]
[1747231069091,15.82450646,178.26,178.1,94.5439]
[1747231069293,362.0,178.25,178.1,98.1138]
[1747231069491,5.6105,178.21,178.11,81.18]
[1747231069988,362.0,178.25,178.11,81.18]
[1747231070696,5.611,178.2,178.11,81.18]
[1747231071194,81.16,178.23,178.11,81.18]
[1747231071893,5.6106,178.21,178.16,5.6119]
[1747231072496,5.6102,178.22,178.17,5.6115]
[1747231072693,81.16,178.23,178.11,81.18]
[1747231072893,362.0,178.25,178.11,81.18]
[1747231073095,5.6107,178.21,178.11,81.18]
[1747231073795,443.1,178.25,178.11,81.18]
[1747231074297,5.6107,178.21,178.16,5.6118]
[1747231074798,5.6107,178.21,178.17,5.6117]
[1747231075192,5.61,178.23,178.15,81.5]
[1747231075495,443.1,178.25,178.15,81.5]
[1747231075697,362.0,178.25,178.15,81.5]
[1747231076498,362.0,178.25,178.23,5.6098]
[1747231076802,86.6482,178.29,178.23,5.6098]
[1747231077092,5.6078,178.3,178.18,81.02]
[1747231077299,443.0,178.31,178.21,81.5]
[1747231077498,443.0,178.31,178.25,5.6089]
[1747231077798,367.6075,178.31,178.25,5.6089]
[1747231078101,367.6075,178.31,178.21,81.5]
[1747231078596,362.0,178.31,178.21,81.5]
[1747231079101,362.0,178.31,178.21,87.1102]
[1747231079396,362.0,178.31,178.17,81.5]
[1747231079397,97.32450646,178.3,178.17,81.5]
[1747231080299,362.0,178.29,178.17,81.5]
[1747231080500,362.0,178.28,178.17,81.5]
[1747231080697,15.82450646,178.26,178.17,81.5]
[1747231081198,5.61,178.23,178.17,81.5]
[1747231081595,15.82450646,178.26,178.17,81.5]
[1747231082901,5.6101,178.23,178.2,5.6106]
[1747231083202,15.82450646,178.26,178.14,3.5481]
[1747231083404,5.6102,178.22,178.18,5.6111]
[1747231083592,15.82450646,178.26,178.18,5.6111]
[1747231084097,15.82450646,178.26,178.19,5.611]
[1747231084300,15.82450646,178.26,178.14,3.5481]
[1747231084500,362.0,178.28,178.14,3.5481]
[1747231084699,442.84,178.28,178.14,3.5481]
[1747231085703,362.0,178.28,178.15,27.04890646]
[1747231086406,362.0,178.33,178.16,11.2241]
[1747231086593,5.6075,178.31,178.17,80.78]
[1747231086904,362.0,178.33,178.17,82.72]
[1747231087107,5.6078,178.3,178.25,5.6091]
[1747231087402,362.0,178.33,178.25,5.6091]
[1747231087603,5.6079,178.3,178.25,5.6091]
[1747231087805,362.0,178.33,178.21,80.8]
[1747231088205,362.0,178.33,178.22,5.6101]
[1747231088601,362.0,178.33,178.21,80.8]
[1747231088796,362.0,178.33,178.17,1.94]
[1747231089007,15.82450646,178.3,178.17,82.74]
[1747231089205,5.6096,178.24,178.17,82.74]
[1747231089408,80.72,178.26,178.17,82.74]
[1747231089703,5.6096,178.24,178.17,82.74]
[1747231089902,362.0,178.29,178.17,82.74]
[1747231091406,362.0,178.29,178.23,5.6096]
[1747231091606,362.0,178.29,178.17,82.74]
[1747231092307,362.0,178.29,178.18,15.82450646]
[1747231092506,581.52450646,178.38,178.19,11.2222]
[1747231092807,80.64,178.36,178.22,15.82450646]
[1747231093001,80.64,178.36,178.23,84.5192]
[1747231093498,86.246,178.36,178.31,5.6073]
[1747231093807,80.64,178.36,178.23,84.5192]
[1747231095310,80.64,178.36,178.23,3.7192]
[1747231095700,5.6085,178.28,178.23,5.6098]
[1747231095905,80.56,178.3,178.23,5.6098]
[1747231096508,80.56,178.3,178.24,5.6095]
[1747231097007,5.608,178.29,178.24,5.6095]
[1747231097308,80.56,178.3,178.25,5.6091]
[1747231097503,86.1679,178.3,178.22,80.78]
[1747231097809,80.56,178.3,178.22,80.78]
[1747231098111,362.0,178.29,178.15,3.6451]
[1747231098305,362.0,178.29,178.15,84.4251]
[1747231098813,362.0,178.29,178.26,5.6088]
[1747231099605,362.0,178.29,178.15,84.4251]
[1747231099912,362.0,178.29,178.16,11.2236]
[1747231100804,362.0,178.29,178.15,84.4251]
[1747231101113,362.0,178.29,178.18,15.82450646]
[1747231101309,362.0,178.29,178.28,5.6083]
[1747231101510,80.42,178.32,178.23,80.78]
[1747231102002,442.4,178.34,178.23,91.9997]
[1747231102202,362.0,178.34,178.24,3.5319]
[1747231102409,484.9,178.38,178.34,5.6064]
[1747231102606,362.0,178.39,178.29,80.78]
[1747231103112,362.0,178.39,178.36,5.6056]
[1747231103314,362.0,178.39,178.29,80.78]
[1747231103512,80.38,178.43,178.29,80.78]
[1747231104115,86.3833,178.44,178.36,5.6057]
[1747231104312,166.7433,178.44,178.36,5.6057]
[1747231104512,161.14,178.44,178.31,80.36]
[1747231104706,161.14,178.44,178.36,5.6055]
[1747231105311,161.14,178.44,178.37,5.6054]
[1747231105507,161.14,178.44,178.33,1.8904]
[1747231105820,161.14,178.44,178.36,5.6055]
[1747231106121,161.14,178.44,178.33,1.8904]
[1747231106321,166.7433,178.44,178.33,1.8904]
[1747231106516,166.7433,178.44,178.37,5.6053]
[1747231106821,362.0,178.46,178.35,80.76]
[1747231108421,362.0,178.46,178.35,96.58450646]
[1747231108616,362.0,178.46,178.39,15.82450646]
[1747231108813,362.0,178.46,178.45,5.6029]
[1747231109014,80.24,178.53,178.44,80.74]
[1747231109318,80.24,178.53,178.45,5.6029]
[1747231109723,80.24,178.53,178.44,80.74]
[1747231109926,80.24,178.53,178.39,80.74]
[1747231110324,5.6013,178.51,178.39,80.74]
[1747231110727,80.24,178.53,178.39,80.74]
[1747231111022,5.6014,178.5,178.43,5.6035]
[1747231111228,96.06450646,178.53,178.39,80.74]
[1747231111421,96.06450646,178.53,178.39,80.72]
[1747231112129,96.06450646,178.53,178.42,5.6036]
[1747231112325,96.06450646,178.53,178.39,80.72]
[1747231112630,5.602,178.48,178.43,5.6033]
[1747231112827,96.06450646,178.53,178.39,80.72]
[1747231113429,80.24,178.53,178.39,80.72]
[1747231113733,5.6019,178.49,178.39,80.72]
[1747231113928,80.24,178.53,178.39,80.72]
[1747231114231,362.0,178.52,178.39,80.72]
[1747231114923,5.6019,178.49,178.44,5.603]
[1747231115128,362.0,178.52,178.44,5.603]
[1747231115430,5.6022,178.48,178.44,5.603]
[1747231115726,362.0,178.52,178.43,5.6035]
[1747231115921,5.6032,178.45,178.39,80.72]
[1747231116126,80.04,178.45,178.34,81.9777]
[1747231116325,80.04,178.45,178.39,5.6047]
[1747231116630,80.04,178.45,178.34,81.9777]
[1747231117733,85.643,178.45,178.34,81.9777]
[1747231118532,5.6033,178.44,178.34,81.9777]
[1747231118731,80.04,178.45,178.34,81.9777]
[1747231119135,85.6432,178.45,178.39,5.6046]
[1747231119436,80.04,178.5,178.34,81.9777]
[1747231119636,5.6021,178.48,178.43,5.6033]
[1747231119934,5.6021,178.48,178.34,81.9777]
[1747231119935,79.96,178.49,178.34,81.9777]
[1747231120136,79.96,178.49,178.35,15.82450646]
[1747231120334,85.5617,178.49,178.35,15.82450646]
[1747231120836,5.6021,178.48,178.43,5.6033]
[1747231121034,79.96,178.49,178.4,80.02]
[1747231121237,79.96,178.49,178.39,80.02]
[1747231121427,5.6028,178.46,178.41,5.6042]
[1747231121631,79.96,178.49,178.39,80.02]
[1747231122035,5.6032,178.45,178.4,5.6044]
[1747231122433,79.96,178.49,178.39,80.02]
[1747231122731,441.9,178.51,178.39,80.02]
[1747231122938,362.0,178.51,178.39,80.02]
[1747231123335,80.02,178.54,178.4,15.82450646]
[1747231123534,442.02,178.59,178.4,15.82450646]
[1747231123733,79.86,178.58,178.4,15.82450646]
[1747231124234,5.5996,178.56,178.5,5.6012]
[1747231124434,79.86,178.58,178.47,80.02]
[1747231124634,5.5992,178.57,178.47,80.02]
[1747231125335,79.84,178.58,178.47,80.02]
[1747231125737,447.6186,178.59,178.47,80.02]
[1747231125940,442.02,178.59,178.47,80.02]
[1747231126139,500.14450646,178.65,178.47,80.02]
[1747231126140,79.8,178.61,178.47,80.02]
[1747231126437,80.02,178.63,178.47,80.02]
[1747231126831,79.8,178.62,178.47,80.02]
[1747231127234,79.78,178.62,178.47,80.02]
[1747231127637,500.14450646,178.65,178.47,80.02]
[1747231127840,79.76,178.64,178.48,15.82450646]
[1747231128243,484.32,178.65,178.56,5.5992]
[1747231128444,85.357,178.64,178.53,80.02]
[1747231128643,79.76,178.64,178.53,80.02]
[1747231128844,79.76,178.64,178.58,5.5985]
[1747231129046,564.06,178.65,178.58,5.5985]
[1747231129344,5.5973,178.63,178.58,5.5985]
[1747231129543,159.76,178.66,178.53,80.02]
[1747231129843,159.76,178.66,178.54,1.7762]
[1747231130042,159.76,178.66,178.6,5.5982]
[1747231130341,159.76,178.66,178.54,1.7762]
[1747231130940,5.5973,178.63,178.54,81.7762]
[1747231131142,5.5973,178.63,178.58,5.5986]
[1747231131444,159.76,178.66,178.54,81.7762]
[1747231131742,5.5973,178.63,178.54,81.7762]
[1747231132236,5.5973,178.63,178.58,5.5986]
[1747231132433,5.5971,178.64,178.54,81.7762]
[1747231132943,5.5974,178.63,178.54,81.7762]
[1747231133138,5.5974,178.63,178.59,5.5983]
[1747231133641,5.5971,178.64,178.54,81.7762]
[1747231133842,159.76,178.66,178.59,5.5983]
[1747231134145,5.597,178.64,178.54,81.7762]
[1747231134947,362.0,178.68,178.54,81.7762]
[1747231135144,362.0,178.68,178.55,1.8077]
[1747231135341,362.0,178.68,178.58,5.5988]
[1747231135544,362.0,178.68,178.55,1.8077]
[1747231135945,79.56,178.67,178.6,5.5982]
[1747231136142,79.56,178.67,178.55,1.8077]
[1747231136342,441.54,178.68,178.55,3.5679]
[1747231136543,5.5962,178.67,178.63,5.5971]
[1747231137237,441.54,178.68,178.55,3.5679]
[1747231137441,441.54,178.68,178.56,79.96]
[1747231137942,362.0,178.68,178.56,79.96]
[1747231138146,79.5,178.67,178.56,79.96]
[1747231138948,5.597,178.64,178.6,5.5981]
[1747231139244,79.5,178.67,178.56,79.96]
[1747231139446,5.5971,178.64,178.56,79.96]
[1747231139646,79.5,178.67,178.56,79.96]
[1747231139949,5.5982,178.61,178.55,1.8077]
[1747231140148,159.46,178.67,178.55,1.8077]
[1747231140349,362.0,178.66,178.55,1.8077]
[1747231140553,5.5968,178.65,178.55,1.8077]
[1747231140948,5.5968,178.65,178.61,5.5979]
[1747231141143,441.44,178.66,178.55,1.8077]
[1747231141144,447.0364,178.66,178.55,1.8077]
[1747231141349,441.44,178.66,178.55,1.8077]
[1747231141750,447.0364,178.66,178.61,5.5977]
[1747231142146,5.5971,178.64,178.59,5.5984]
[1747231142348,441.44,178.66,178.55,1.8077]
[1747231142947,79.38,178.69,178.55,17.63220646]
[1747231143350,317.45963984,178.7,178.55,501.49220646]
[1747231143744,317.45963984,178.7,178.65,5.5965]
[1747231143951,317.45963984,178.7,178.62,79.94]
[1747231145154,323.05473984,178.7,178.62,79.94]
[1747231145854,317.45963984,178.7,178.62,79.94]
[1747231146053,317.45963984,178.7,178.58,79.3]
[1747231146355,5.5979,178.62,178.58,5.5986]
[1747231146651,79.3,178.64,178.58,5.5986]
[1747231146843,79.3,178.64,178.55,485.6677]
[1747231147553,79.3,178.64,178.6,5.598]
[1747231148356,79.3,178.64,178.55,485.6677]
[1747231148556,84.8972,178.64,178.55,485.6677]
[1747231148856,79.3,178.64,178.55,485.6677]
[1747231149357,79.3,178.64,178.61,5.5977]
[1747231149555,79.3,178.64,178.55,485.6677]
[1747231149853,79.3,178.64,178.62,5.5975]
[1747231150051,79.3,178.64,178.55,485.6677]
[1747231150453,5.5978,178.62,178.59,5.5985]
[1747231150756,79.3,178.64,178.54,81.0762]
[1747231150956,84.897,178.64,178.54,81.0762]
[1747231151157,79.3,178.64,178.54,81.0762]
[1747231151551,79.3,178.64,178.61,5.5977]
[1747231151759,79.3,178.64,178.54,81.0762]
[1747231152053,5.5979,178.61,178.57,5.5989]
[1747231152253,79.3,178.64,178.57,5.5989]
[1747231152754,79.3,178.64,178.54,81.0762]
[1747231152954,79.3,178.66,178.54,81.0762]
[1747231153149,5.5975,178.63,178.6,5.5981]
[1747231153349,79.14,178.65,178.54,81.0762]
[1747231154361,5.5976,178.62,178.59,5.5984]
[1747231154554,79.14,178.65,178.59,5.5984]
[1747231154749,5.5973,178.64,178.6,5.5981]
[1747231154955,79.12,178.64,178.54,81.0762]
[1747231155262,79.12,178.64,178.58,5.5985]
[1747231155558,79.12,178.64,178.54,81.0762]
[1747231156059,79.3,178.66,178.54,81.0762]
[1747231156562,362.0,178.69,178.55,15.82450646]
[1747231156760,441.08,178.69,178.56,79.08]
[1747231157060,5.5957,178.68,178.56,80.9363]
[1747231157261,362.0,178.69,178.58,9.83583661]
[1747231157562,362.0,178.69,178.65,5.5964]
[1747231157762,362.0,178.69,178.61,79.3]
[1747231159257,362.0,178.69,178.62,1.8759]
[1747231159458,362.0,178.69,178.65,5.5964]
[1747231159662,362.0,178.69,178.62,1.8759]
[1747231160756,362.0,178.69,178.62,80.8559]
[1747231161464,362.0,178.69,178.67,5.596]
[1747231161661,362.0,178.69,178.62,80.8559]
[1747231161958,317.45963984,178.7,178.68,5.5956]
[1747231162162,362.0,178.74,178.62,80.8559]
[1747231163058,5.5942,178.73,178.62,80.8559]
[1747231163561,362.0,178.74,178.62,80.8559]
[1747231163765,78.9,178.78,178.65,15.73351511]
[1747231163966,78.9,178.78,178.66,3.7445]
[1747231164168,362.0,178.8,178.7,5.5949]
[1747231164368,78.9,178.79,178.67,79.28]
[1747231165369,5.5934,178.76,178.7,5.595]
[1747231165667,78.9,178.79,178.67,79.28]
[1747231165870,84.4925,178.79,178.72,5.5942]
[1747231166068,78.9,178.79,178.72,5.5942]
[1747231166469,362.0,178.8,178.68,78.84]
[1747231166771,362.0,178.8,178.69,499.39351511]
[1747231166959,362.0,178.8,178.78,5.5924]
[1747231167163,362.0,178.87,178.76,79.28]
[1747231167568,5.5907,178.84,178.78,5.5924]
[1747231167868,78.8,178.86,178.76,79.28]
[1747231168074,5.5904,178.85,178.79,5.592]
[1747231168272,5.5904,178.85,178.76,79.28]
[1747231168664,84.3702,178.86,178.8,5.5919]
[1747231168867,5.5902,178.86,178.8,5.5919]
[1747231169269,440.76,178.87,178.76,79.28]
[1747231169670,362.0,178.87,178.76,79.28]
[1747231169868,5.5905,178.85,178.79,5.5921]
[1747231170069,440.74,178.87,178.79,5.5921]
[1747231170370,5.5907,178.84,178.76,79.28]
[1747231170670,440.74,178.87,178.76,79.28]
[1747231170868,440.74,178.87,178.8,5.5919]
[1747231171171,362.0,178.86,178.76,79.28]
[1747231171474,367.5901,178.86,178.81,5.5915]
[1747231171770,362.0,178.86,178.76,79.28]
[1747231172072,5.5906,178.85,178.76,79.28]
[1747231172471,362.0,178.86,178.76,79.28]
[1747231172674,367.5903,178.86,178.76,79.28]
[1747231172965,367.5903,178.86,178.75,1.8462]
[1747231172966,78.66,178.99,178.81,15.73351511]
[1747231173168,78.66,178.99,178.82,161.6255]
[1747231173365,78.66,178.99,178.82,3.7255]
[1747231173568,78.66,178.99,178.83,79.24]
[1747231173769,78.66,178.99,178.84,1.8284]
[1747231174175,5.5876,178.94,178.88,5.5892]
[1747231174481,5.5876,178.94,178.84,1.8284]
[1747231174673,5.5876,178.94,178.86,5.5899]
[1747231174974,78.66,178.99,178.84,1.8284]
[1747231175172,78.66,178.99,178.85,5.5903]
[1747231175373,15.73351511,178.97,178.84,81.0484]
[1747231175574,79.22,178.96,178.84,81.0484]
[1747231175870,15.73351511,178.97,178.84,81.0484]
[1747231176076,78.58,178.95,178.84,81.0484]
[1747231176272,5.5894,178.89,178.84,81.0484]
[1747231176874,5.5895,178.88,178.84,81.0484]